[Event "Titled Tuesday Blitz August 02 Late 2022"]
[White "Ibarra Jerez, Jose Carlos"]
[Black "Martinez Alcantara, Jose Eduardo"]
[WhiteFideId "2226332"]
[BlackFideId "3805662"]
[WhiteElo "2628"]
[BlackElo "2703"]
[Result "1/2-1/2"]
[Round "10"]
[TimeControl "180+1"]
[Date "2022.08.02"]
[WhiteClock "0:00:12"]
[BlackClock "0:00:24"]

1. c4 {[%clk 0:03:00]}  c5 {[%clk 0:02:59]} 2. Nf3 {[%clk 0:03:00]}  Nc6 {[%clk 0:03:00]} 3. Nc3 {[%clk 0:02:58]}  g6 {[%clk 0:03:00]} 4. e3 {[%clk 0:02:54]}  Bg7 {[%clk 0:03:01]} 5. d4 {[%clk 0:02:55]}  d6 {[%clk 0:03:02]} 6. d5 {[%clk 0:02:51]}  Ne5 {[%clk 0:03:01]} 7. Nxe5 {[%clk 0:02:48]}  Bxe5 {[%clk 0:03:02]} 8. Bd3 {[%clk 0:02:36]}  Nf6 {[%clk 0:02:50]} 9. e4 {[%clk 0:02:23]}  O-O {[%clk 0:02:48]} 10. f4 {[%clk 0:02:17]}  Bd4 {[%clk 0:02:39]} 11. Nb5 {[%clk 0:02:04]}  Qa5+ {[%clk 0:02:29]} 12. Bd2 {[%clk 0:01:58]}  Qb6 {[%clk 0:02:29]} 13. Nxd4 {[%clk 0:01:57]}  cxd4 {[%clk 0:02:29]} 14. h3 {[%clk 0:01:47]}  Qxb2 {[%clk 0:02:12]} 15. O-O {[%clk 0:01:43]}  Qa3 {[%clk 0:02:09]} 16. Rf3 {[%clk 0:01:38]}  Nd7 {[%clk 0:01:54]} 17. Bc1 {[%clk 0:01:24]}  Qa5 {[%clk 0:01:48]} 18. Bb2 {[%clk 0:01:22]}  e5 {[%clk 0:01:29]} 19. dxe6 {[%clk 0:01:15]}  fxe6 {[%clk 0:01:30]} 20. Bxd4 {[%clk 0:01:12]}  e5 {[%clk 0:01:30]} 21. fxe5 {[%clk 0:01:07]}  dxe5 {[%clk 0:01:22]} 22. Bf2 {[%clk 0:00:54]}  Rxf3 {[%clk 0:00:53]} 23. Qxf3 {[%clk 0:00:55]}  Nf8 {[%clk 0:00:54]} 24. Rb1 {[%clk 0:00:47]}  Qc7 {[%clk 0:00:50]} 25. Bg3 {[%clk 0:00:36]}  Be6 {[%clk 0:00:31]} 26. Rb5 {[%clk 0:00:35]}  Nd7 {[%clk 0:00:29]} 27. Qe3 {[%clk 0:00:26]}  a6 {[%clk 0:00:30]} 28. Rb1 {[%clk 0:00:23]}  Bf7 {[%clk 0:00:30]} 29. Be2 {[%clk 0:00:17]}  Re8 {[%clk 0:00:30]} 30. Kh2 {[%clk 0:00:17]}  b6 {[%clk 0:00:28]} 31. Rf1 {[%clk 0:00:17]}  Nc5 {[%clk 0:00:28]} 32. Rf6 {[%clk 0:00:15]}  Nd7 {[%clk 0:00:22]} 33. Rf2 {[%clk 0:00:14]}  Qd6 {[%clk 0:00:20]} 34. Qg5 {[%clk 0:00:12]}  Qe7 {[%clk 0:00:17]} 35. Qh6 {[%clk 0:00:12]}  Be6 {[%clk 0:00:15]} 36. Bh4 {[%clk 0:00:11]}  Qc5 {[%clk 0:00:13]} 37. Rf1 {[%clk 0:00:10]}  Rf8 {[%clk 0:00:13]} 38. Rxf8+ {[%clk 0:00:09]}  Qxf8 {[%clk 0:00:14]} 39. Qe3 {[%clk 0:00:10]}  Qc5 {[%clk 0:00:14]} 40. Qg5 {[%clk 0:00:09]}  Qf8 {[%clk 0:00:12]} 41. Bg3 {[%clk 0:00:08]}  Qf6 {[%clk 0:00:04]} 42. Qe3 {[%clk 0:00:07]}  a5 {[%clk 0:00:03]} 43. Bd1 {[%clk 0:00:07]}  h5 {[%clk 0:00:02]} 44. Ba4 {[%clk 0:00:06]}  h4 {[%clk 0:00:02]} 45. Be1 {[%clk 0:00:06]}  Nc5 {[%clk 0:00:03]} 46. Bb5 {[%clk 0:00:06]}  g5 {[%clk 0:00:04]} 47. Bd2 {[%clk 0:00:06]}  g4 {[%clk 0:00:04]} 48. hxg4 {[%clk 0:00:06]}  Bxg4 {[%clk 0:00:05]} 49. Qg5+ {[%clk 0:00:05]}  Qxg5 {[%clk 0:00:05]} 50. Bxg5 {[%clk 0:00:06]}  Nxe4 {[%clk 0:00:05]} 51. Bxh4 {[%clk 0:00:06]}  Nd6 {[%clk 0:00:05]} 52. Ba6 {[%clk 0:00:06]}  Be6 {[%clk 0:00:05]} 53. Bg3 {[%clk 0:00:05]}  Nxc4 {[%clk 0:00:03]} 54. Bxc4 {[%clk 0:00:04]}  Bxc4 {[%clk 0:00:04]} 55. Bxe5 {[%clk 0:00:04]}  b5 {[%clk 0:00:05]} 56. a3 {[%clk 0:00:03]}  Kf7 {[%clk 0:00:05]} 57. Bc7 {[%clk 0:00:04]}  b4 {[%clk 0:00:03]} 58. axb4 {[%clk 0:00:04]}  axb4 {[%clk 0:00:02]} 59. Be5 {[%clk 0:00:04]}  Ke6 {[%clk 0:00:02]} 60. Bb2 {[%clk 0:00:05]}  Kf5 {[%clk 0:00:03]} 61. g3 {[%clk 0:00:05]}  Ke4 {[%clk 0:00:04]} 62. Kh3 {[%clk 0:00:05]}  Kd3 {[%clk 0:00:05]} 63. Kh4 {[%clk 0:00:06]}  Be6 {[%clk 0:00:04]} 64. Bg7 {[%clk 0:00:07]}  Ke4 {[%clk 0:00:04]} 65. g4 {[%clk 0:00:07]}  b3 {[%clk 0:00:04]} 66. Bh8 {[%clk 0:00:07]}  Kf4 {[%clk 0:00:05]} 67. Bb2 {[%clk 0:00:08]}  Bxg4 {[%clk 0:00:05]} 68. Bc1+ {[%clk 0:00:08]}  Kf3 {[%clk 0:00:05]} 69. Bb2 {[%clk 0:00:09]}  Kf4 {[%clk 0:00:05]} 70. Bc1+ {[%clk 0:00:09]}  Kf5 {[%clk 0:00:06]} 71. Kg3 {[%clk 0:00:08]}  Bh5 {[%clk 0:00:06]} 72. Kf2 {[%clk 0:00:09]}  Ke4 {[%clk 0:00:07]} 73. Bb2 {[%clk 0:00:09]}  Kd3 {[%clk 0:00:08]} 74. Ke1 {[%clk 0:00:09]}  Be2 {[%clk 0:00:07]} 75. Ba3 {[%clk 0:00:09]}  Bf3 {[%clk 0:00:07]} 76. Bb2 {[%clk 0:00:09]}  Bd5 {[%clk 0:00:08]} 77. Ba3 {[%clk 0:00:10]}  Kc3 {[%clk 0:00:08]} 78. Ke2 {[%clk 0:00:09]}  Be4 {[%clk 0:00:05]} 79. Ke3 {[%clk 0:00:09]}  Bg6 {[%clk 0:00:05]} 80. Ke2 {[%clk 0:00:09]}  Kc2 {[%clk 0:00:06]} 81. Ke3 {[%clk 0:00:09]}  Bf7 {[%clk 0:00:06]} 82. Kd4 {[%clk 0:00:09]}  Be8 {[%clk 0:00:07]} 83. Ke5 {[%clk 0:00:09]}  Kb1 {[%clk 0:00:06]} 84. Kd4 {[%clk 0:00:08]}  Bf7 {[%clk 0:00:06]} 85. Kc3 {[%clk 0:00:08]}  Ka2 {[%clk 0:00:07]} 86. Bb2 {[%clk 0:00:09]}  Kb1 {[%clk 0:00:07]} 87. Ba3 {[%clk 0:00:09]}  Bg8 {[%clk 0:00:08]} 88. Bb2 {[%clk 0:00:09]}  Ka2 {[%clk 0:00:08]} 89. Bc1 {[%clk 0:00:09]}  Be6 {[%clk 0:00:09]} 90. Bb2 {[%clk 0:00:09]}  Bd5 {[%clk 0:00:09]} 91. Bc1 {[%clk 0:00:09]}  Kb1 {[%clk 0:00:10]} 92. Bb2 {[%clk 0:00:10]}  Be6 {[%clk 0:00:11]} 93. Ba3 {[%clk 0:00:10]}  Bf7 {[%clk 0:00:12]} 94. Bb2 {[%clk 0:00:10]}  Ka2 {[%clk 0:00:13]} 95. Bc1 {[%clk 0:00:10]}  Bg6 {[%clk 0:00:12]} 96. Bb2 {[%clk 0:00:09]}  Bc2 {[%clk 0:00:12]} 97. Bc1 {[%clk 0:00:09]}  Bd1 {[%clk 0:00:13]} 98. Bb2 {[%clk 0:00:09]}  Kb1 {[%clk 0:00:14]} 99. Ba3 {[%clk 0:00:09]}  Ka1 {[%clk 0:00:15]} 100. Bb2+ {[%clk 0:00:09]}  Ka2 {[%clk 0:00:16]} 101. Bc1 {[%clk 0:00:09]}  Kb1 {[%clk 0:00:17]} 102. Ba3 {[%clk 0:00:09]}  Bc2 {[%clk 0:00:17]} 103. Bb2 {[%clk 0:00:10]}  Ka2 {[%clk 0:00:18]} 104. Bc1 {[%clk 0:00:10]}  Be4 {[%clk 0:00:19]} 105. Kd4 {[%clk 0:00:09]}  Bc6 {[%clk 0:00:19]} 106. Kc5 {[%clk 0:00:09]}  Kb1 {[%clk 0:00:20]} 107. Kb4 {[%clk 0:00:09]}  Ka2 {[%clk 0:00:21]} 108. Kc3 {[%clk 0:00:09]}  Ba4 {[%clk 0:00:21]} 109. Bb2 {[%clk 0:00:09]}  Kb1 {[%clk 0:00:22]} 110. Ba3 {[%clk 0:00:09]}  Ka2 {[%clk 0:00:22]} 111. Bb2 {[%clk 0:00:10]}  Bc6 {[%clk 0:00:21]} 112. Bc1 {[%clk 0:00:10]}  Kb1 {[%clk 0:00:21]} 113. Bb2 {[%clk 0:00:10]}  Bd5 {[%clk 0:00:22]} 114. Ba3 {[%clk 0:00:10]}  Ka2 {[%clk 0:00:23]} 115. Bb2 {[%clk 0:00:11]}  Kb1 {[%clk 0:00:23]} 116. Ba3 {[%clk 0:00:11]}  Bg8 {[%clk 0:00:23]} 117. Bb2 {[%clk 0:00:12]}  Ka2 {[%clk 0:00:24]} 1/2-1/2


[Site "https://www.chess.com"]

[Event "Titled Tuesday Blitz August 02 Late 2022"]
[White "Jaferian, Koosha"]
[Black "Espinosa Veloz, Ermes"]
[WhiteFideId "12507440"]
[BlackFideId "3507424"]
[WhiteElo "2030"]
[BlackElo "2333"]
[Result "1-0"]
[Round "10"]
[TimeControl "180+1"]
[Date "2022.08.02"]
[WhiteClock "0:00:02"]
[BlackClock "0:00:01"]

1. e4 {[%clk 0:03:00]}  e5 {[%clk 0:02:58]} 2. Nf3 {[%clk 0:02:59]}  Nc6 {[%clk 0:02:58]} 3. d4 {[%clk 0:02:59]}  exd4 {[%clk 0:02:57]} 4. Nxd4 {[%clk 0:03:00]}  Nf6 {[%clk 0:02:57]} 5. Nc3 {[%clk 0:02:59]}  Bb4 {[%clk 0:02:57]} 6. Nxc6 {[%clk 0:02:59]}  bxc6 {[%clk 0:02:58]} 7. Bd3 {[%clk 0:02:59]}  d5 {[%clk 0:02:58]} 8. exd5 {[%clk 0:03:00]}  O-O {[%clk 0:02:51]} 9. O-O {[%clk 0:02:59]}  cxd5 {[%clk 0:02:51]} 10. h3 {[%clk 0:02:57]}  c6 {[%clk 0:02:50]} 11. Qf3 {[%clk 0:02:58]}  Rb8 {[%clk 0:02:48]} 12. Bf4 {[%clk 0:02:57]}  Bd6 {[%clk 0:02:48]} 13. b3 {[%clk 0:02:58]}  Qc7 {[%clk 0:02:38]} 14. Bxd6 {[%clk 0:02:53]}  Qxd6 {[%clk 0:02:39]} 15. Rad1 {[%clk 0:02:53]}  Re8 {[%clk 0:02:36]} 16. Rfe1 {[%clk 0:02:53]}  Bd7 {[%clk 0:02:35]} 17. Ne2 {[%clk 0:02:44]}  c5 {[%clk 0:02:29]} 18. Ng3 {[%clk 0:02:43]}  g6 {[%clk 0:02:26]} 19. Ne2 {[%clk 0:02:18]}  Kg7 {[%clk 0:02:23]} 20. Nf4 {[%clk 0:02:16]}  Re5 {[%clk 0:02:15]} 21. Qg3 {[%clk 0:01:58]}  Rbe8 {[%clk 0:02:10]} 22. Rxe5 {[%clk 0:01:57]}  Qxe5 {[%clk 0:02:11]} 23. Qf3 {[%clk 0:01:39]}  Bc8 {[%clk 0:01:15]} 24. Bb5 {[%clk 0:01:32]}  Rd8 {[%clk 0:01:11]} 25. Nd3 {[%clk 0:01:22]}  Qc7 {[%clk 0:01:08]} 26. Qe3 {[%clk 0:01:16]}  a6 {[%clk 0:00:58]} 27. Ba4 {[%clk 0:01:09]}  Ne4 {[%clk 0:00:58]} 28. Re1 {[%clk 0:01:03]}  Bf5 {[%clk 0:00:48]} 29. f3 {[%clk 0:00:55]}  d4 {[%clk 0:00:41]} 30. Qc1 {[%clk 0:00:25]}  Nc3 {[%clk 0:00:39]} 31. Nb2 {[%clk 0:00:26]}  Qg3 {[%clk 0:00:36]} 32. Qd2 {[%clk 0:00:21]}  Bxh3 {[%clk 0:00:34]} 33. Bc6 {[%clk 0:00:18]}  Bxg2 {[%clk 0:00:30]} 34. Qf2 {[%clk 0:00:14]}  Qxf2+ {[%clk 0:00:28]} 35. Kxf2 {[%clk 0:00:15]}  Bh3 {[%clk 0:00:29]} 36. Nd3 {[%clk 0:00:16]}  Bf5 {[%clk 0:00:27]} 37. Bb7 {[%clk 0:00:08]}  Bxd3 {[%clk 0:00:23]} 38. cxd3 {[%clk 0:00:09]}  Nxa2 {[%clk 0:00:24]} 39. Bxa6 {[%clk 0:00:09]}  Nb4 {[%clk 0:00:24]} 40. Bc4 {[%clk 0:00:10]}  Ra8 {[%clk 0:00:22]} 41. Re7 {[%clk 0:00:10]}  Ra2+ {[%clk 0:00:21]} 42. Kg3 {[%clk 0:00:09]}  Rd2 {[%clk 0:00:21]} 43. Rxf7+ {[%clk 0:00:10]}  Kh6 {[%clk 0:00:21]} 44. Rc7 {[%clk 0:00:05]}  Nxd3 {[%clk 0:00:20]} 45. Bg8 {[%clk 0:00:05]}  Kg5 {[%clk 0:00:13]} 46. f4+ {[%clk 0:00:02]}  Kf6 {[%clk 0:00:12]} 47. Rf7+ {[%clk 0:00:02]}  Ke6 {[%clk 0:00:10]} 48. Rxh7+ {[%clk 0:00:03]}  Kd6 {[%clk 0:00:10]} 49. Rg7 {[%clk 0:00:02]}  Rb2 {[%clk 0:00:08]} 50. Rxg6+ {[%clk 0:00:02]}  Kc7 {[%clk 0:00:08]} 51. Rg7+ {[%clk 0:00:03]}  Kb6 {[%clk 0:00:07]} 52. f5 {[%clk 0:00:03]}  Ne5 {[%clk 0:00:03]} 53. f6 {[%clk 0:00:02]}  d3 {[%clk 0:00:03]} 54. f7 {[%clk 0:00:01]}  Nxf7 {[%clk 0:00:01]} 55. Rxf7 {[%clk 0:00:01]}  Kb5 {[%clk 0:00:01]} 56. Kf3 {[%clk 0:00:02]} 1-0


[Site "https://www.chess.com"]

[Event "Titled Tuesday Blitz August 02 Late 2022"]
[White "Machidon, Cristi"]
[Black "De Gleria, Francesco"]
[WhiteFideId "13904590"]
[BlackFideId "4630394"]
[WhiteElo "2312"]
[BlackElo "2283"]
[Result "1-0"]
[Round "10"]
[TimeControl "180+1"]
[Date "2022.08.02"]
[WhiteClock "0:00:21"]
[BlackClock "0:00:32"]

1. d4 {[%clk 0:02:57]}  Nf6 {[%clk 0:02:59]} 2. c4 {[%clk 0:02:57]}  g6 {[%clk 0:02:59]} 3. Nf3 {[%clk 0:02:57]}  Bg7 {[%clk 0:02:59]} 4. g3 {[%clk 0:02:57]}  O-O {[%clk 0:02:58]} 5. Bg2 {[%clk 0:02:58]}  d6 {[%clk 0:02:59]} 6. Nc3 {[%clk 0:02:57]}  Nc6 {[%clk 0:02:59]} 7. O-O {[%clk 0:02:58]}  a6 {[%clk 0:02:59]} 8. d5 {[%clk 0:02:46]}  Na5 {[%clk 0:02:59]} 9. Qd3 {[%clk 0:02:45]}  c5 {[%clk 0:02:58]} 10. e4 {[%clk 0:02:41]}  Rb8 {[%clk 0:02:50]} 11. a3 {[%clk 0:01:40]}  b5 {[%clk 0:02:33]} 12. cxb5 {[%clk 0:01:39]}  Nb3 {[%clk 0:02:29]} 13. Rb1 {[%clk 0:01:36]}  axb5 {[%clk 0:02:26]} 14. Be3 {[%clk 0:01:29]}  Ng4 {[%clk 0:01:39]} 15. Bf4 {[%clk 0:01:27]}  c4 {[%clk 0:01:36]} 16. Qc2 {[%clk 0:01:26]}  Nc5 {[%clk 0:01:31]} 17. h3 {[%clk 0:01:18]}  Ne5 {[%clk 0:01:28]} 18. Nxe5 {[%clk 0:01:12]}  dxe5 {[%clk 0:01:26]} 19. Be3 {[%clk 0:01:12]}  Qd6 {[%clk 0:01:14]} 20. Kh2 {[%clk 0:01:01]}  Bd7 {[%clk 0:01:14]} 21. Rbd1 {[%clk 0:00:57]}  b4 {[%clk 0:01:11]} 22. axb4 {[%clk 0:00:56]}  Rxb4 {[%clk 0:01:12]} 23. Rd2 {[%clk 0:00:54]}  Rfb8 {[%clk 0:01:11]} 24. Na2 {[%clk 0:00:41]}  Ba4 {[%clk 0:00:55]} 25. Qc3 {[%clk 0:00:34]}  Rb3 {[%clk 0:00:52]} 26. Qa5 {[%clk 0:00:34]}  Rxe3 {[%clk 0:00:43]} 27. fxe3 {[%clk 0:00:32]}  Nb3 {[%clk 0:00:39]} 28. Qxa4 {[%clk 0:00:22]}  Nxd2 {[%clk 0:00:38]} 29. Rf2 {[%clk 0:00:22]}  Rxb2 {[%clk 0:00:32]} 30. Qe8+ {[%clk 0:00:21]} 1-0


[Site "https://www.chess.com"]

[Event "Titled Tuesday Blitz August 02 Late 2022"]
[White "Manukian, Artak"]
[Black "Perera Alfonso, Rene Humberto"]
[WhiteFideId "13301373"]
[BlackFideId "3514722"]
[WhiteElo "2455"]
[BlackElo "2313"]
[Result "0-1"]
[Round "10"]
[TimeControl "180+1"]
[Date "2022.08.02"]
[WhiteClock "0:00:38"]
[BlackClock "0:01:12"]

1. e4 {[%clk 0:03:00]}  c5 {[%clk 0:02:58]} 2. Nf3 {[%clk 0:03:00]}  d6 {[%clk 0:02:58]} 3. d4 {[%clk 0:02:57]}  cxd4 {[%clk 0:02:58]} 4. Qxd4 {[%clk 0:02:58]}  Nc6 {[%clk 0:02:58]} 5. Bb5 {[%clk 0:02:58]}  Qd7 {[%clk 0:02:58]} 6. c4 {[%clk 0:02:54]}  Nf6 {[%clk 0:02:54]} 7. Nc3 {[%clk 0:02:53]}  g6 {[%clk 0:02:52]} 8. Bg5 {[%clk 0:02:43]}  Bg7 {[%clk 0:02:51]} 9. Qd2 {[%clk 0:02:33]}  O-O {[%clk 0:02:48]} 10. Bh6 {[%clk 0:02:31]}  a6 {[%clk 0:02:47]} 11. Bxg7 {[%clk 0:02:31]}  Kxg7 {[%clk 0:02:46]} 12. Ba4 {[%clk 0:02:23]}  Qg4 {[%clk 0:02:41]} 13. O-O {[%clk 0:02:16]}  Nxe4 {[%clk 0:02:32]} 14. Nxe4 {[%clk 0:02:15]}  Qxe4 {[%clk 0:02:33]} 15. Rfe1 {[%clk 0:02:07]}  Qxc4 {[%clk 0:02:14]} 16. Bxc6 {[%clk 0:02:04]}  bxc6 {[%clk 0:02:05]} 17. Rxe7 {[%clk 0:02:03]}  Bg4 {[%clk 0:01:55]} 18. Rc1 {[%clk 0:01:57]}  Qd5 {[%clk 0:01:54]} 19. Qxd5 {[%clk 0:01:45]}  cxd5 {[%clk 0:01:55]} 20. Nd4 {[%clk 0:01:44]}  Rac8 {[%clk 0:01:49]} 21. Rcc7 {[%clk 0:01:40]}  Rxc7 {[%clk 0:01:47]} 22. Rxc7 {[%clk 0:01:41]}  Kf6 {[%clk 0:01:35]} 23. f3 {[%clk 0:01:34]}  Be6 {[%clk 0:01:34]} 24. Rc6 {[%clk 0:01:27]}  Ke5 {[%clk 0:01:31]} 25. Nb3 {[%clk 0:01:20]}  d4 {[%clk 0:01:25]} 26. Rxa6 {[%clk 0:01:19]}  Bxb3 {[%clk 0:01:20]} 27. axb3 {[%clk 0:01:20]}  Rb8 {[%clk 0:01:20]} 28. Ra3 {[%clk 0:01:19]}  d3 {[%clk 0:01:20]} 29. Kf2 {[%clk 0:01:19]}  Kd4 {[%clk 0:01:18]} 30. Ra4+ {[%clk 0:01:16]}  Kd5 {[%clk 0:01:18]} 31. Ra3 {[%clk 0:01:12]}  Re8 {[%clk 0:01:18]} 32. b4 {[%clk 0:00:48]}  Kd4 {[%clk 0:01:16]} 33. b5 {[%clk 0:00:44]}  Re2+ {[%clk 0:01:15]} 34. Kf1 {[%clk 0:00:41]}  Rxb2 {[%clk 0:01:16]} 35. Ra7 {[%clk 0:00:38]}  Rb1+ {[%clk 0:01:12]} 0-1


[Site "https://www.chess.com"]

[Event "Titled Tuesday Blitz August 02 Late 2022"]
[White "Naroditsky, Daniel"]
[Black "Fedoseev, Vladimir"]
[WhiteFideId "2026961"]
[BlackFideId "24130737"]
[WhiteElo "2608"]
[BlackElo "2726"]
[Result "1-0"]
[Round "10"]
[TimeControl "180+1"]
[Date "2022.08.02"]
[WhiteClock "0:00:03"]
[BlackClock "0:00:02"]

1. e4 {[%clk 0:03:00]}  c6 {[%clk 0:02:57]} 2. d3 {[%clk 0:02:56]}  d5 {[%clk 0:02:56]} 3. Nd2 {[%clk 0:02:57]}  e5 {[%clk 0:02:56]} 4. Ngf3 {[%clk 0:02:57]}  Bd6 {[%clk 0:02:55]} 5. g3 {[%clk 0:02:57]}  Nf6 {[%clk 0:02:55]} 6. Bg2 {[%clk 0:02:58]}  O-O {[%clk 0:02:55]} 7. O-O {[%clk 0:02:59]}  Re8 {[%clk 0:02:55]} 8. b3 {[%clk 0:02:56]}  a5 {[%clk 0:02:54]} 9. a3 {[%clk 0:02:54]}  b5 {[%clk 0:02:49]} 10. Bb2 {[%clk 0:02:54]}  Bb7 {[%clk 0:02:43]} 11. Re1 {[%clk 0:02:32]}  Nbd7 {[%clk 0:02:42]} 12. d4 {[%clk 0:02:29]}  exd4 {[%clk 0:02:34]} 13. Nxd4 {[%clk 0:02:24]}  Be5 {[%clk 0:02:26]} 14. exd5 {[%clk 0:02:14]}  c5 {[%clk 0:02:18]} 15. Nc6 {[%clk 0:02:09]}  Bxc6 {[%clk 0:02:19]} 16. dxc6 {[%clk 0:02:03]}  Bxb2 {[%clk 0:02:18]} 17. Rxe8+ {[%clk 0:02:01]}  Qxe8 {[%clk 0:02:16]} 18. cxd7 {[%clk 0:01:57]}  Qxd7 {[%clk 0:02:16]} 19. Ne4 {[%clk 0:01:06]}  Rd8 {[%clk 0:02:14]} 20. Qxd7 {[%clk 0:00:52]}  Rxd7 {[%clk 0:02:13]} 21. Nxf6+ {[%clk 0:00:51]}  gxf6 {[%clk 0:02:12]} 22. Rb1 {[%clk 0:00:44]}  Bxa3 {[%clk 0:02:11]} 23. Bc6 {[%clk 0:00:42]}  Rd2 {[%clk 0:02:11]} 24. Bxb5 {[%clk 0:00:43]}  Rxc2 {[%clk 0:02:11]} 25. Rd1 {[%clk 0:00:37]}  Bb2 {[%clk 0:02:09]} 26. Rd7 {[%clk 0:00:29]}  Bd4 {[%clk 0:02:02]} 27. Bc4 {[%clk 0:00:29]}  Rxf2 {[%clk 0:01:57]} 28. Kh1 {[%clk 0:00:27]}  Rc2 {[%clk 0:01:54]} 29. Ra7 {[%clk 0:00:22]}  Ra2 {[%clk 0:01:39]} 30. Rxf7 {[%clk 0:00:19]}  Kh8 {[%clk 0:01:37]} 31. Ra7 {[%clk 0:00:18]}  h5 {[%clk 0:01:33]} 32. Bd3 {[%clk 0:00:10]}  Kg8 {[%clk 0:01:32]} 33. Bc4+ {[%clk 0:00:09]}  Kf8 {[%clk 0:01:30]} 34. Rf7+ {[%clk 0:00:06]}  Ke8 {[%clk 0:01:29]} 35. Rh7 {[%clk 0:00:06]}  a4 {[%clk 0:01:28]} 36. Bb5+ {[%clk 0:00:05]}  Kf8 {[%clk 0:01:26]} 37. bxa4 {[%clk 0:00:04]}  Ra1+ {[%clk 0:01:18]} 38. Kg2 {[%clk 0:00:04]}  Ra2+ {[%clk 0:01:18]} 39. Kf3 {[%clk 0:00:04]}  Rxh2 {[%clk 0:00:45]} 40. a5 {[%clk 0:00:04]}  f5 {[%clk 0:00:45]} 41. Kf4 {[%clk 0:00:04]}  Rf2+ {[%clk 0:00:45]} 42. Kg5 {[%clk 0:00:05]}  Rf3 {[%clk 0:00:46]} 43. a6 {[%clk 0:00:04]}  Rxg3+ {[%clk 0:00:45]} 44. Kxf5 {[%clk 0:00:04]}  c4 {[%clk 0:00:39]} 45. Bxc4 {[%clk 0:00:02]}  Ra3 {[%clk 0:00:39]} 46. Rd7 {[%clk 0:00:02]}  Bf2 {[%clk 0:00:38]} 47. Rf7+ {[%clk 0:00:02]}  Ke8 {[%clk 0:00:38]} 48. Ke6 {[%clk 0:00:02]}  Bg1 {[%clk 0:00:29]} 49. Rg7 {[%clk 0:00:02]}  Re3+ {[%clk 0:00:23]} 50. Kd5 {[%clk 0:00:02]}  Re1 {[%clk 0:00:23]} 51. a7 {[%clk 0:00:03]}  Bxa7 {[%clk 0:00:20]} 52. Rxa7 {[%clk 0:00:04]}  h4 {[%clk 0:00:20]} 53. Rh7 {[%clk 0:00:04]}  Kd8 {[%clk 0:00:20]} 54. Kd6 {[%clk 0:00:04]}  h3 {[%clk 0:00:16]} 55. Be6 {[%clk 0:00:04]}  Rd1+ {[%clk 0:00:12]} 56. Bd5 {[%clk 0:00:04]}  Re1 {[%clk 0:00:13]} 57. Rxh3 {[%clk 0:00:04]}  Re7 {[%clk 0:00:12]} 58. Rh8+ {[%clk 0:00:04]}  Re8 {[%clk 0:00:13]} 59. Rh7 {[%clk 0:00:05]}  Re1 {[%clk 0:00:13]} 60. Rd7+ {[%clk 0:00:05]}  Ke8 {[%clk 0:00:13]} 61. Rg7 {[%clk 0:00:05]}  Kd8 {[%clk 0:00:13]} 62. Ra7 {[%clk 0:00:04]}  Rc1 {[%clk 0:00:11]} 63. Rd7+ {[%clk 0:00:04]}  Ke8 {[%clk 0:00:11]} 64. Rb7 {[%clk 0:00:03]}  Kf8 {[%clk 0:00:10]} 65. Rh7 {[%clk 0:00:02]}  Re1 {[%clk 0:00:09]} 66. Be6 {[%clk 0:00:02]}  Rf1 {[%clk 0:00:09]} 67. Ke5 {[%clk 0:00:03]}  Ke8 {[%clk 0:00:07]} 68. Bf5 {[%clk 0:00:02]}  Kd8 {[%clk 0:00:05]} 69. Rd7+ {[%clk 0:00:03]}  Ke8 {[%clk 0:00:05]} 70. Ra7 {[%clk 0:00:04]}  Re1+ {[%clk 0:00:05]} 71. Kf6 {[%clk 0:00:04]}  Kd8 {[%clk 0:00:05]} 72. Rd7+ {[%clk 0:00:04]}  Ke8 {[%clk 0:00:05]} 73. Rc7 {[%clk 0:00:03]}  Rd1 {[%clk 0:00:05]} 74. Rc8+ {[%clk 0:00:03]}  Rd8 {[%clk 0:00:06]} 75. Rc6 {[%clk 0:00:03]}  Rd1 {[%clk 0:00:05]} 76. Rb6 {[%clk 0:00:03]}  Kd8 {[%clk 0:00:05]} 77. Rc6 {[%clk 0:00:04]}  Ke8 {[%clk 0:00:04]} 78. Rc3 {[%clk 0:00:03]}  Rd6+ {[%clk 0:00:03]} 79. Be6 {[%clk 0:00:04]}  Rd1 {[%clk 0:00:04]} 80. Rc8+ {[%clk 0:00:03]}  Rd8 {[%clk 0:00:03]} 81. Rc7 {[%clk 0:00:03]}  Rd3 {[%clk 0:00:03]} 82. Rh7 {[%clk 0:00:03]}  Kd8 {[%clk 0:00:03]} 83. Ke5 {[%clk 0:00:03]}  Re3+ {[%clk 0:00:02]} 84. Kd6 {[%clk 0:00:04]}  Rd3+ {[%clk 0:00:02]} 85. Bd5 {[%clk 0:00:05]}  Re3 {[%clk 0:00:03]} 86. Ra7 {[%clk 0:00:04]}  Rc3 {[%clk 0:00:02]} 87. Rd7+ {[%clk 0:00:03]}  Ke8 {[%clk 0:00:02]} 88. Rg7 {[%clk 0:00:03]} 1-0


[Site "https://www.chess.com"]

[Event "Titled Tuesday Blitz August 02 Late 2022"]
[White "Riehle, Marco"]
[Black "Zou, Chen"]
[WhiteFideId "12904392"]
[BlackFideId "8610959"]
[WhiteElo "2462"]
[BlackElo "2276"]
[Result "1-0"]
[Round "10"]
[TimeControl "180+1"]
[Date "2022.08.02"]
[WhiteClock "0:00:28"]
[BlackClock "0:00:01"]

1. e4 {[%clk 0:03:00]}  e5 {[%clk 0:02:59]} 2. Nf3 {[%clk 0:03:00]}  Nc6 {[%clk 0:02:59]} 3. Bc4 {[%clk 0:03:01]}  Bc5 {[%clk 0:02:59]} 4. c3 {[%clk 0:03:00]}  Nf6 {[%clk 0:02:59]} 5. d4 {[%clk 0:03:01]}  exd4 {[%clk 0:03:00]} 6. cxd4 {[%clk 0:03:02]}  Bb4+ {[%clk 0:02:59]} 7. Kf1 {[%clk 0:03:02]}  d5 {[%clk 0:02:51]} 8. exd5 {[%clk 0:03:03]}  Nxd5 {[%clk 0:02:51]} 9. Nc3 {[%clk 0:03:03]}  Bxc3 {[%clk 0:02:49]} 10. bxc3 {[%clk 0:03:01]}  O-O {[%clk 0:02:49]} 11. Ng5 {[%clk 0:03:01]}  h6 {[%clk 0:02:40]} 12. h4 {[%clk 0:02:59]}  Nce7 {[%clk 0:01:47]} 13. Ba3 {[%clk 0:02:52]}  c6 {[%clk 0:01:39]} 14. Qf3 {[%clk 0:02:45]}  b5 {[%clk 0:01:30]} 15. Bd3 {[%clk 0:02:35]}  a5 {[%clk 0:01:19]} 16. Bxe7 {[%clk 0:02:16]}  Qxe7 {[%clk 0:01:03]} 17. Re1 {[%clk 0:02:14]}  Qf6 {[%clk 0:01:01]} 18. Qg3 {[%clk 0:01:25]}  Qf4 {[%clk 0:00:51]} 19. Bh7+ {[%clk 0:01:17]}  Kh8 {[%clk 0:00:51]} 20. Qd3 {[%clk 0:01:18]}  Nf6 {[%clk 0:00:45]} 21. g3 {[%clk 0:01:15]}  Qg4 {[%clk 0:00:31]} 22. Kg2 {[%clk 0:01:10]}  Ra7 {[%clk 0:00:12]} 23. Re5 {[%clk 0:01:01]}  c5 {[%clk 0:00:09]} 24. Rhe1 {[%clk 0:00:59]}  Bb7+ {[%clk 0:00:05]} 25. f3 {[%clk 0:00:57]}  Raa8 {[%clk 0:00:05]} 26. Bf5 {[%clk 0:00:55]}  Qh5 {[%clk 0:00:04]} 27. Re7 {[%clk 0:00:48]}  cxd4 {[%clk 0:00:03]} 28. Rxb7 {[%clk 0:00:48]}  hxg5 {[%clk 0:00:03]} 29. hxg5 {[%clk 0:00:48]}  Qxg5 {[%clk 0:00:04]} 30. Rh1+ {[%clk 0:00:48]}  Kg8 {[%clk 0:00:04]} 31. Bh7+ {[%clk 0:00:48]}  Kh8 {[%clk 0:00:04]} 32. Be4+ {[%clk 0:00:49]}  Kg8 {[%clk 0:00:04]} 33. Bh7+ {[%clk 0:00:47]}  Kh8 {[%clk 0:00:04]} 34. Re7 {[%clk 0:00:47]}  Rae8 {[%clk 0:00:04]} 35. Be4+ {[%clk 0:00:35]}  Kg8 {[%clk 0:00:04]} 36. Bh7+ {[%clk 0:00:36]}  Kh8 {[%clk 0:00:03]} 37. Rc7 {[%clk 0:00:37]}  dxc3 {[%clk 0:00:02]} 38. Be4+ {[%clk 0:00:35]}  Kg8 {[%clk 0:00:03]} 39. Bh7+ {[%clk 0:00:36]}  Kh8 {[%clk 0:00:03]} 40. Rxc3 {[%clk 0:00:35]}  b4 {[%clk 0:00:03]} 41. Be4+ {[%clk 0:00:32]}  Kg8 {[%clk 0:00:03]} 42. Bh7+ {[%clk 0:00:33]}  Kh8 {[%clk 0:00:03]} 43. Rc7 {[%clk 0:00:34]}  a4 {[%clk 0:00:03]} 44. Rc4 {[%clk 0:00:30]}  b3 {[%clk 0:00:02]} 45. Rch4 {[%clk 0:00:30]}  b2 {[%clk 0:00:01]} 46. Be4+ {[%clk 0:00:29]}  Kg8 {[%clk 0:00:01]} 47. Rh8# {[%clk 0:00:28]} 1-0


[Site "https://www.chess.com"]